bitfinex/quotes_BTCUSD_20230114
["timestamp","ask_amount","ask_price","bid_price","bid_amount"]
[1673706711309,0.7209,20952.0,20951.0,1.19088669]
[1673706711569,0.7209,20952.0,20951.0,1.24088669]
[1673706711816,0.7209,20952.0,20951.0,1.49088669]
[1673706712050,0.7339,20952.0,20951.0,1.81293107]
[1673706712306,0.7209,20952.0,20951.0,1.49088669]
[1673706712546,0.7209,20952.0,20951.0,1.54088669]
[1673706712547,0.7339,20952.0,20951.0,1.54088669]
[1673706712804,0.7339,20952.0,20951.0,1.79690273]
[1673706713058,0.7209,20952.0,20951.0,1.49088669]
[1673706713312,0.7209,20952.0,20951.0,1.80312431]
[1673706713313,0.7339,20952.0,20951.0,1.80312431]
[1673706713587,0.7339,20952.0,20951.0,1.54088669]
[1673706713857,0.24478413,20953.0,20951.0,1.82568]
[1673706714129,0.05797116,20953.0,20952.0,1.01430169]
[1673706714386,0.01966244,20955.0,20952.0,2.20523669]
[1673706714643,0.74174973,20959.0,20954.0,0.59070169]
[1673706714895,0.74174973,20959.0,20955.0,0.71353569]
[1673706715161,0.98528053,20959.0,20955.0,2.20880469]
[1673706715422,0.29511472,20958.0,20955.0,1.254402]
[1673706715695,0.29511472,20958.0,20956.0,0.25057905]
[1673706715951,0.29511472,20958.0,20957.0,0.3]
[1673706715952,0.29011472,20958.0,20957.0,0.3]
[1673706716470,0.58730672,20958.0,20957.0,0.777167]
[1673706716736,0.74174973,20959.0,20957.0,0.777167]
[1673706717031,0.74174973,20959.0,20957.0,1.25436869]
[1673706717533,0.74174973,20959.0,20957.0,1.31836869]
[1673706717795,0.74174973,20959.0,20957.0,1.25436869]
[1673706718057,0.01924973,20959.0,20958.0,0.30859192]
[1673706718335,0.01924973,20959.0,20958.0,0.777144]
[1673706718598,0.01924973,20959.0,20958.0,1.3277136]
[1673706718859,0.01924973,20959.0,20958.0,1.0914246]
[1673706719117,0.10904973,20959.0,20958.0,1.0914246]
[1673706719362,0.10904973,20959.0,20958.0,0.6142806]
[1673706720150,0.01924973,20959.0,20958.0,1.0914246]
[1673706720398,0.01924973,20959.0,20958.0,1.2314246]
[1673706720676,0.01924973,20959.0,20958.0,1.0914246]
[1673706720946,0.01924973,20959.0,20958.0,1.0994246]
[1673706721206,0.29977568,20959.0,20958.0,0.008]
[1673706721478,0.29977568,20959.0,20954.0,0.00095809]
[1673706721479,0.1,20958.0,20954.0,0.00095809]
[1673706721734,0.19072595,20957.0,20954.0,0.00095809]
[1673706722023,0.297192,20956.0,20954.0,0.00095809]
[1673706722291,0.297192,20955.0,20953.0,0.30795077]
[1673706722538,0.6896,20955.0,20953.0,0.32501787]
[1673706723303,0.6896,20955.0,20952.0,0.954537]
[1673706723604,0.6896,20955.0,20950.0,0.00098143]
[1673706723605,0.58791795,20954.0,20953.0,0.1873]
[1673706723843,0.58791795,20954.0,20950.0,0.00098143]
[1673706723844,0.1,20953.0,20950.0,0.00098143]
[1673706724102,0.96519895,20952.0,20950.0,0.00098143]
[1673706724366,0.66800695,20952.0,20950.0,0.00098143]
[1673706724615,0.397192,20951.0,20946.0,0.23531866]
[1673706724879,0.30522595,20950.0,20946.0,0.23627997]
[1673706725130,0.48791795,20949.0,20946.0,0.00096131]
[1673706725381,0.30442595,20948.0,20946.0,0.00096131]
[1673706725640,0.30442595,20948.0,20944.0,0.00289524]
[1673706725641,1.103587,20947.0,20944.0,0.00289524]
[1673706725911,1.103587,20947.0,20944.0,0.00389198]
[1673706725912,0.1145,20945.0,20944.0,0.00389198]
[1673706726181,0.60241795,20945.0,20944.0,0.00389198]
[1673706726391,0.1,20944.0,20939.0,0.27968667]
[1673706726646,0.1,20944.0,20937.0,0.30683723]
[1673706726647,0.30522595,20943.0,20937.0,0.30683723]
[1673706726915,0.48791795,20942.0,20937.0,0.30683723]
[1673706727189,0.19072595,20941.0,20939.0,0.30794514]
[1673706727616,0.7089,20943.0,20940.0,0.29368043]
[1673706727618,0.7089,20943.0,20937.0,0.47858054]
[1673706727838,0.7089,20943.0,20938.0,0.2604451]
[1673706727839,0.411692,20942.0,20938.0,0.2604451]
[1673706728063,0.1145,20942.0,20938.0,0.2604451]
[1673706728279,0.297192,20941.0,20938.0,0.2604451]
[1673706728518,0.25130887,20940.0,20937.0,0.00097054]
[1673706728795,0.297192,20939.0,20937.0,0.00097054]
[1673706729039,0.297192,20938.0,20937.0,0.00097054]
[1673706729291,0.25130887,20940.0,20936.0,0.31311506]
[1673706729578,0.45603482,20940.0,20937.0,0.001]
[1673706729857,0.45603482,20940.0,20936.0,0.31311506]
[1673706729858,0.25130887,20940.0,20936.0,0.31311506]
[1673706730164,0.0968,20938.0,20937.0,0.001]
[1673706730411,0.25130887,20940.0,20938.0,0.1432]
[1673706730669,0.007,20940.0,20939.0,0.27862127]
[1673706730933,0.9758281,20943.0,20939.0,1.29275727]
[1673706731189,0.014,20940.0,20939.0,0.777577]
[1673706731473,0.014,20940.0,20939.0,1.17132231]
[1673706731987,0.014,20940.0,20939.0,2.10691326]
[1673706732235,0.14279613,20954.0,20939.0,2.10691326]
[1673706732236,0.21945741,20949.0,20940.0,0.10667544]
[1673706732496,0.667,20951.0,20945.0,0.1142]
[1673706732761,0.22162725,20950.0,20946.0,1.66846069]
[1673706733014,0.21662725,20950.0,20947.0,0.3]
[1673706733270,0.21662725,20950.0,20948.0,0.477372]
[1673706733535,0.303192,20949.0,20948.0,0.95457369]
[1673706733797,0.303192,20949.0,20948.0,1.25457369]
[1673706733798,0.006,20949.0,20948.0,1.25457369]
[1673706734050,0.006,20950.0,20948.0,1.60510069]
[1673706734293,0.006,20950.0,20949.0,1.11340169]
[1673706734549,0.006,20950.0,20949.0,2.76290395]
[1673706734812,0.01924973,20959.0,20950.0,0.1]
[1673706735078,0.01924973,20959.0,20952.0,2.02317]
[1673706735367,0.01924973,20959.0,20954.0,0.1]
[1673706735590,0.01924973,20959.0,20955.0,0.47720169]
[1673706735861,0.01924973,20959.0,20956.0,1.02201669]
[1673706736123,0.01924973,20959.0,20957.0,1.43153569]
[1673706736398,0.01924973,20959.0,20958.0,0.81975432]
[1673706736756,0.01924973,20959.0,20958.0,0.58346532]
[1673706737656,0.01924973,20959.0,20958.0,1.32080475]
[1673706737913,0.01924973,20959.0,20958.0,1.02198969]
[1673706738142,0.01924973,20959.0,20958.0,1.16298969]
[1673706738396,0.01992899,20962.0,20959.0,0.1]
[1673706738660,0.01992899,20962.0,20961.0,0.1145]
[1673706738920,0.01992899,20962.0,20961.0,1.01344869]
[1673706739166,0.01992899,20962.0,20961.0,1.02194869]
[1673706740178,0.01992899,20962.0,20961.0,1.26094869]
[1673706740445,0.01992899,20962.0,20961.0,1.46456694]
[1673706740446,0.00492899,20962.0,20961.0,1.46456694]
[1673706740691,0.00492899,20962.0,20961.0,1.16094869]
[1673706740942,0.00492899,20962.0,20961.0,1.36194869]
[1673706741202,0.00492899,20962.0,20961.0,1.550642]
[1673706741488,0.00492899,20962.0,20961.0,1.410642]
[1673706741749,0.00492899,20962.0,20961.0,1.549642]
[1673706742231,0.19565494,20962.0,20961.0,1.70661312]
[1673706742477,0.19565494,20962.0,20961.0,0.44104288]
[1673706742478,0.00492899,20962.0,20961.0,0.44104288]
[1673706742739,0.00492899,20962.0,20961.0,0.86955126]
[1673706743072,0.00492899,20962.0,20961.0,1.20762726]
[1673706743258,0.70582899,20962.0,20961.0,1.20762726]
[1673706743513,0.00492899,20962.0,20961.0,1.60502269]
[1673706743771,0.00492899,20962.0,20961.0,1.65350362]
[1673706744039,0.00492899,20962.0,20961.0,2.1987746]
[1673706744306,0.00492899,20962.0,20961.0,2.1557486]
[1673706744542,0.00492899,20962.0,20961.0,2.2947486]
[1673706744792,0.00492899,20962.0,20961.0,2.1557486]
[1673706745060,0.00492899,20962.0,20961.0,2.14252578]
[1673706745351,0.01966244,20963.0,20962.0,0.1]
[1673706745599,0.01992899,20966.0,20962.0,2.4655089]
[1673706745826,0.01992899,20966.0,20965.0,0.1138]
[1673706746077,0.01992899,20966.0,20965.0,2.32195669]
[1673706746353,0.01992899,20966.0,20965.0,2.615338]
[1673706747124,0.01992899,20966.0,20965.0,2.86717634]
[1673706747391,0.01992899,20966.0,20965.0,3.12893117]
[1673706747641,0.10972899,20966.0,20965.0,2.58387634]
[1673706747900,0.37373039,20966.0,20965.0,1.90815669]
[1673706748146,0.37373039,20966.0,20965.0,2.04715669]
[1673706748395,0.01992899,20966.0,20965.0,1.90815669]
[1673706748659,0.01992899,20966.0,20965.0,2.28434469]
[1673706748923,0.01992899,20966.0,20965.0,2.14434469]
[1673706749198,0.01992899,20966.0,20965.0,2.25284469]
[1673706749490,0.01992899,20966.0,20965.0,2.301538]
[1673706749740,0.01992899,20966.0,20965.0,2.46786244]
[1673706750010,0.01992899,20966.0,20965.0,1.23885131]
[1673706750011,0.30045494,20966.0,20965.0,1.23885131]
[1673706750268,0.30045494,20966.0,20964.0,0.476994]
[1673706750269,0.33013878,20966.0,20964.0,0.476994]
[1673706750523,0.33013878,20966.0,20963.0,0.477018]
[1673706750807,0.980592,20965.0,20962.0,0.47990434]
[1673706751060,0.297192,20964.0,20963.0,0.477027]
[1673706751305,0.6834,20965.0,20963.0,0.477027]
[1673706751562,0.6834,20965.0,20962.0,0.00286134]
[1673706751828,0.56438955,20964.0,20962.0,0.00286134]
[1673706752103,0.7975,20965.0,20962.0,0.08786134]
[1673706752357,0.50512148,20964.0,20962.0,0.08786134]
[1673706752624,0.7975,20965.0,20962.0,0.08786134]
[1673706752880,0.297192,20964.0,20962.0,0.08786134]
[1673706753167,0.1134,20963.0,20962.0,0.00286134]
[1673706753449,0.410592,20963.0,20962.0,0.00286134]
[1673706755519,0.60131795,20963.0,20962.0,0.00286134]
[1673706755774,0.887622,20963.0,20962.0,0.00286134]
[1673706756078,1.001822,20963.0,20962.0,0.01006134]
[1673706756285,1.216022,20963.0,20953.0,1.26292996]
[1673706756537,1.216022,20963.0,20955.0,0.00097332]
[1673706756538,0.1145,20957.0,20955.0,0.00097332]
[1673706756787,0.48791795,20956.0,20955.0,0.00097332]
[1673706757059,0.48791795,20956.0,20950.0,0.477305]
[1673706757060,0.60211795,20956.0,20950.0,0.477305]
[1673706757331,0.19072595,20955.0,20952.0,0.00095452]
[1673706757547,0.19072595,20955.0,20953.0,0.047]
[1673706757818,0.1142,20956.0,20952.0,0.00095452]
[1673706758071,0.1138,20954.0,20952.0,0.00095452]
[1673706758337,0.297192,20953.0,20952.0,0.32190908]
[1673706758633,0.6863,20955.0,20953.0,0.27878634]
[1673706758884,0.6863,20955.0,20951.0,0.477302]
[1673706759146,0.297192,20954.0,20951.0,0.72067244]
[1673706759404,0.19072595,20954.0,20952.0,0.046]
[1673706759671,0.6863,20955.0,20951.0,0.72067244]
[1673706759947,0.01,20955.0,20953.0,0.32143278]
[1673706760196,0.01,20955.0,20954.0,0.536347]
[1673706760448,0.91248963,20957.0,20954.0,0.536347]
[1673706760707,0.91248963,20957.0,20954.0,0.3]
[1673706760987,0.91248963,20957.0,20954.0,0.77723]
[1673706761281,0.28456672,20955.0,20954.0,0.3]
[1673706761528,0.297192,20955.0,20954.0,0.3]
[1673706761776,0.297192,20955.0,20953.0,0.3]
[1673706762033,0.25970043,20955.0,20953.0,0.3]
[1673706762635,0.31970043,20955.0,20954.0,0.006]
[1673706762884,0.004,20955.0,20953.0,1.09309295]
[1673706763123,0.004,20955.0,20953.0,0.318]
[1673706763368,0.004,20955.0,20953.0,0.018]
[1673706763616,0.28214627,20954.0,20953.0,0.013]
[1673706764139,0.004,20955.0,20953.0,0.013]
[1673706764385,0.24580946,20955.0,20953.0,0.013]
[1673706764651,0.24580946,20955.0,20953.0,0.313]
[1673706764904,0.24188757,20954.0,20953.0,0.3]
[1673706765371,0.24588757,20954.0,20953.0,0.313]
[1673706765608,0.25705654,20956.0,20953.0,0.3]
[1673706765854,0.21572248,20955.0,20953.0,0.313]
[1673706766089,0.23532791,20954.0,20953.0,0.3]
[1673706766322,0.23932791,20954.0,20953.0,0.313]
[1673706766579,0.23532791,20954.0,20953.0,0.3]
[1673706766816,0.23532791,20954.0,20953.0,0.313]
[1673706767301,0.004,20955.0,20953.0,0.313]
[1673706767553,0.004,20955.0,20954.0,0.24629448]
[1673706767848,0.23882206,20956.0,20954.0,0.54629448]
[1673706768104,0.23882206,20956.0,20955.0,0.3]
[1673706768602,0.53601406,20956.0,20955.0,0.3]
[1673706768875,0.6863,20957.0,20955.0,0.3]
[1673706768876,0.91602954,20957.0,20955.0,0.3]
[1673706769132,0.063,20956.0,20955.0,0.777213]
[1673706769387,0.28468988,20958.0,20955.0,0.777213]
[1673706769637,0.135,20956.0,20955.0,0.790713]
[1673706770157,0.08912973,20956.0,20955.0,1.027042]
[1673706770655,0.08912973,20956.0,20955.0,1.50424369]
[1673706770912,0.08912973,20956.0,20955.0,1.71774369]
[1673706771159,0.08912973,20956.0,20955.0,1.72674369]
[1673706771446,4.40943838,20964.0,20956.0,0.1]
[1673706771687,4.66621303,20964.0,20958.0,1.431405]
[1673706771935,4.66621303,20964.0,20959.0,0.3]
[1673706771936,0.6428,20964.0,20959.0,0.3]
[1673706772182,0.6428,20964.0,20960.0,0.954174]
[1673706772462,0.88791351,20964.0,20960.0,0.954174]
[1673706772753,0.6508,20964.0,20961.0,0.3]
[1673706772944,0.6428,20964.0,20961.0,0.62156266]
[1673706773197,0.6428,20964.0,20961.0,0.3]
[1673706773198,0.26162575,20963.0,20961.0,0.3]
[1673706773444,0.1145,20963.0,20961.0,0.3]
[1673706773738,0.1145,20963.0,20959.0,0.398]
[1673706774018,0.1145,20963.0,20959.0,0.098]
[1673706774019,0.297192,20962.0,20959.0,0.098]
[1673706774238,0.19072595,20962.0,20959.0,0.32999322]
[1673706774482,0.1,20962.0,20958.0,0.29713153]
[1673706774734,0.29072595,20962.0,20959.0,0.099]
[1673706774994,0.2145,20963.0,20958.0,0.29713153]
[1673706775289,0.53080969,20963.0,20959.0,0.3]
[1673706775495,0.34008374,20963.0,20959.0,0.55668515]
[1673706775744,0.22558374,20963.0,20959.0,1.51100784]
[1673706776286,0.008,20963.0,20959.0,1.51100784]
[1673706776536,0.008,20963.0,20959.0,1.54451657]
[1673706777040,0.9245304,20964.0,20959.0,1.54451657]
[1673706777041,0.2817304,20964.0,20959.0,1.54451657]
[1673706777292,0.47245635,20964.0,20959.0,1.64351657]
[1673706777550,0.007,20963.0,20959.0,1.64351657]
[1673706777821,0.19772595,20963.0,20960.0,0.38219146]
[1673706778062,0.2817304,20964.0,20961.0,0.3]
[1673706778310,0.007,20964.0,20962.0,0.236233]
[1673706778561,0.007,20964.0,20963.0,0.3]
[1673706778824,0.24325303,20964.0,20963.0,0.3]
[1673706779101,0.0898,20964.0,20963.0,0.3]
[1673706779345,1.31404644,20958.0,20957.0,2.84074301]
[1673706779607,1.80196439,20958.0,20956.0,0.477175]
[1673706779865,1.31404644,20958.0,20957.0,0.32462934]
[1673706780414,1.31404644,20958.0,20956.0,0.954361]
[1673706780671,1.31404644,20958.0,20957.0,0.236301]
[1673706780942,1.60474025,20958.0,20956.0,1.24403584]
[1673706781196,1.7954662,20958.0,20956.0,0.954361]
[1673706781458,1.7954662,20958.0,20957.0,0.098]
[1673706781459,1.61274025,20958.0,20957.0,0.098]
[1673706782187,1.31404644,20958.0,20957.0,0.30607721]
[1673706782437,1.31404644,20958.0,20957.0,0.72200269]
[1673706782940,1.31404644,20958.0,20957.0,0.82200269]
[1673706783197,1.31404644,20958.0,20957.0,1.12200269]
[1673706784245,0.57126258,20958.0,20957.0,2.59689392]
[1673706784504,0.38439211,20961.0,20958.0,0.1]
[1673706784762,0.38439211,20961.0,20960.0,0.57720169]
[1673706785037,0.38439211,20961.0,20960.0,2.54475969]
[1673706785294,0.38439211,20961.0,20960.0,2.69439321]
[1673706785555,0.38439211,20961.0,20960.0,3.15041285]
[1673706785810,0.01992713,20965.0,20960.0,3.15041285]
[1673706786066,0.01992713,20965.0,20963.0,0.47720169]
[1673706786325,0.01992713,20965.0,20964.0,3.5155763]
[1673706786602,0.01992713,20965.0,20964.0,4.36369284]
[1673706786860,0.01992899,20966.0,20965.0,0.01989287]
[1673706787111,0.01992899,20966.0,20965.0,1.08593172]
[1673706787361,0.02034387,20969.0,20966.0,0.1]
[1673706787616,0.02034387,20969.0,20968.0,0.47720169]
[1673706787915,0.02034387,20969.0,20968.0,2.54409869]
[1673706788238,0.02034387,20969.0,20968.0,3.00563585]
[1673706788393,0.55147437,20978.0,20969.0,0.1]
[1673706788394,0.01757437,20978.0,20969.0,0.1]
[1673706788656,0.67457437,20978.0,20971.0,0.47720169]
[1673706788901,0.67457437,20978.0,20972.0,2.54377269]
[1673706789153,0.29382169,20974.0,20972.0,2.07544669]
[1673706789446,0.28164354,20975.0,20972.0,2.07544669]
[1673706789664,0.25482911,20978.0,20972.0,2.07544669]
[1673706789925,0.27178939,20977.0,20972.0,2.07544669]
[1673706790176,0.01757437,20978.0,20973.0,0.12332806]
[1673706790450,0.01757437,20978.0,20974.0,1.91600869]
[1673706790694,0.01757437,20978.0,20976.0,0.2263]
[1673706790940,0.01757437,20978.0,20977.0,1.24083769]
[1673706791191,0.01757437,20978.0,20977.0,1.48535769]
[1673706791763,2.28006838,20981.0,20977.0,2.09005938]
[1673706792044,2.28006838,20981.0,20979.0,0.1273]
[1673706792297,0.03763013,20981.0,20980.0,1.429932]
[1673706792542,0.03,20985.0,20980.0,2.28884298]
[1673706792543,0.29810328,20983.0,20980.0,2.28884298]
[1673706792802,0.25519933,20984.0,20981.0,0.4]
[1673706793071,0.03,20985.0,20981.0,0.86517787]
[1673706793072,0.33258132,20982.0,20981.0,0.86517787]
[1673706793370,0.33258132,20982.0,20981.0,0.3]
[1673706793624,0.03,20985.0,20982.0,0.1]
[1673706793871,0.03,20985.0,20983.0,0.476576]
[1673706794679,0.03,20985.0,20984.0,0.335923]
[1673706794880,0.41766389,20985.0,20984.0,0.3085]
[1673706795127,0.41766389,20985.0,20984.0,0.3035]
[1673706795128,0.03,20985.0,20984.0,0.3035]
[1673706795647,0.03,20985.0,20984.0,0.4035]
[1673706795880,0.03,20985.0,20984.0,0.3035]
[1673706796132,0.03,20985.0,20984.0,0.4035]
[1673706796394,0.03,20985.0,20984.0,0.73028792]
[1673706796650,0.03,20985.0,20984.0,0.63028792]
[1673706796905,0.1198,20985.0,20984.0,0.480553]
[1673706797196,0.1198,20985.0,20984.0,0.78823828]
[1673706797197,0.025,20985.0,20984.0,0.78823828]
[1673706797412,0.025,20985.0,20984.0,0.78423828]
[1673706797660,0.025,20985.0,20984.0,0.585113]
[1673706797924,0.025,20985.0,20984.0,0.941033]
[1673706798191,0.025,20985.0,20984.0,1.120973]
[1673706798474,0.02383903,20992.0,20984.0,1.59817469]
[1673706798699,1.1654253,21003.0,20991.0,0.47720169]
[1673706798700,0.02598819,21003.0,20991.0,0.47720169]
[1673706798962,0.02598819,21003.0,21001.0,0.04736]
[1673706798963,0.6777,21002.0,21001.0,0.04736]
[1673706799221,0.26085984,21002.0,21001.0,0.04736]
[1673706799498,0.57657357,21002.0,21001.0,0.04736]
[1673706799765,0.02598819,21003.0,21001.0,0.53306169]
[1673706800027,0.02598819,21003.0,21002.0,0.3]
[1673706800028,0.12098819,21003.0,21002.0,0.3]
[1673706800288,0.24148907,21002.0,21001.0,0.18836]
[1673706800598,0.01906,21007.0,21001.0,0.18836]
[1673706800599,0.00057332,21018.0,21001.0,0.04736]
[1673706800853,0.47982416,21021.0,21001.0,0.04736]
[1673706800854,0.14029654,21021.0,21017.0,0.1428]
[1673706801136,0.2103851,21026.0,21017.0,0.1428]
[1673706801137,0.92790213,21029.0,21024.0,2.20195332]
[1673706801427,0.00057293,21040.0,21024.0,2.20195332]
[1673706801428,0.14008798,21060.0,21058.0,1.292867]
[1673706801687,0.14008798,21060.0,21057.0,0.88642335]
[1673706801688,0.5324,21069.0,21057.0,0.88642335]
[1673706801689,0.42020829,21071.0,21061.0,0.379]
[1673706801950,0.42020829,21071.0,21063.0,0.379]
[1673706801951,0.04508674,21068.0,21063.0,0.379]
[1673706802217,0.01082503,21074.0,21070.0,2.9124]
[1673706802499,0.5324,21116.0,21110.0,1.73270129]
[1673706802757,0.5324,21116.0,21100.0,0.2]
[1673706802758,0.47720169,21114.0,21100.0,0.2]
[1673706803019,0.47720169,21114.0,21089.0,0.9988]
[1673706803020,0.6,21101.0,21092.0,1.6216348]
[1673706803268,0.96279364,21114.0,21093.0,0.47]
[1673706803538,4.7695,21107.0,21101.0,0.18]
[1673706803827,0.04246935,21106.0,21102.0,0.314117]
[1673706804084,1.97580318,21126.0,21103.0,0.319932]
[1673706804085,0.04324229,21119.0,21103.0,0.319932]
[1673706804359,0.04324229,21119.0,21103.0,0.3085]
[1673706804360,0.19072595,21118.0,21103.0,0.3085]
[1673706804625,0.42222857,21157.0,21103.0,0.3085]
[1673706804626,0.66458584,21117.0,21109.0,0.48072595]
[1673706804880,0.18405153,21128.0,21110.0,0.0085]
[1673706804881,0.04869331,21119.0,21110.0,0.0085]
[1673706805171,0.04869331,21119.0,21090.0,1.59688043]
[1673706805172,0.83820998,21100.0,21099.0,0.6]
[1673706805427,0.473273,21130.0,21099.0,0.6]
[1673706805428,0.473512,21119.0,21103.0,1.02843413]
[1673706805693,0.473306,21128.0,21106.0,0.6]
[1673706805950,0.473588,21116.0,21107.0,6.61479052]
[1673706806244,0.473588,21116.0,21103.0,1.02843413]
[1673706806245,0.947102,21116.0,21103.0,0.57138935]
[1673706806527,2.92921303,21108.0,21094.0,0.93648712]
[1673706806793,10.76094057,21104.0,21094.0,0.71377845]
[1673706807050,0.7477,21103.0,21094.0,0.71474676]
[1673706807311,0.7477,21103.0,21100.0,0.095]
[1673706807572,2.92921303,21097.0,21090.0,0.25137276]
[1673706807860,0.95124969,21095.0,21081.0,0.8694]
[1673706808118,0.95124969,21095.0,21082.0,0.1]
[1673706808119,0.19072595,21093.0,21082.0,0.1]
[1673706808373,0.948323,21090.0,21081.0,0.31103867]
[1673706808628,0.948323,21090.0,21077.0,0.1]
[1673706808629,0.02128,21083.0,21077.0,0.1]
[1673706808891,0.474278,21085.0,21082.0,0.00096522]
[1673706809173,0.75678,21083.0,21078.0,0.18744415]
[1673706809431,0.75678,21083.0,21077.0,0.1]
[1673706809432,0.49072595,21082.0,21077.0,0.1]
[1673706809695,0.02128,21080.0,21077.0,0.10098531]
[1673706809945,1.14233264,21079.0,21073.0,0.1]
[1673706810228,1.14233264,21079.0,21060.0,0.93520977]
[1673706810229,0.47720169,21074.0,21060.0,0.26701977]
[1673706810529,0.8918,21061.0,21060.0,0.26701977]
[1673706810786,5.58943173,21065.0,21064.0,0.80217203]
[1673706811041,5.58943173,21065.0,21062.0,0.70780337]
[1673706811042,7.00561154,21065.0,21062.0,0.70780337]
[1673706811293,0.47720169,21063.0,21062.0,0.10321337]
[1673706811549,0.96792764,21063.0,21055.0,0.00356214]
[1673706811805,0.47720169,21059.0,21055.0,0.00356214]
[1673706812059,2.78555,21056.0,21045.0,0.53037412]
[1673706812310,0.01915,21047.0,21044.0,0.05]
[1673706812564,0.2528,21045.0,21044.0,0.05]
[1673706812838,0.44352595,21045.0,21041.0,0.7]
[1673706813113,0.2528,21045.0,21044.0,0.6]
[1673706813342,0.01915,21049.0,21046.0,1.33057785]
[1673706813642,0.1,21067.0,21046.0,1.33057785]
[1673706813643,0.1,21052.0,21048.0,1.4]
[1673706813867,0.38557907,21067.0,21048.0,1.4]
[1673706813868,0.38557907,21067.0,21051.0,1.2]
[1673706814171,0.38557907,21067.0,21060.0,0.1776]
[1673706814601,0.28557907,21067.0,21066.0,1.2]
[1673706814857,0.474049,21095.0,21066.0,2.04392156]
[1673706815133,0.47720169,21088.0,21081.0,0.6]
[1673706815392,0.47720169,21088.0,21067.0,0.52012]
[1673706815393,0.47720169,21088.0,21086.0,0.56977579]
[1673706815636,0.47720169,21088.0,21087.0,0.18744415]
[1673706816139,0.474202,21089.0,21086.0,0.44814559]
[1673706816395,0.47720169,21077.0,21075.0,0.52269942]
[1673706816655,1.14240064,21076.0,21074.0,0.1]
[1673706816901,0.95167469,21076.0,21073.0,0.01868466]
[1673706817151,0.95167469,21076.0,21066.0,0.1]
[1673706817418,0.47720169,21072.0,21066.0,0.1]
[1673706817676,0.29072595,21075.0,21052.0,0.52437634]
[1673706817677,0.47720169,21067.0,21055.0,0.6]
[1673706817942,0.47720169,21067.0,21052.0,0.52318052]
[1673706817943,0.82392595,21066.0,21064.0,0.495]
[1673706818202,0.474473,21076.0,21067.0,1.04541377]
[1673706818203,0.51102079,21076.0,21067.0,1.04541377]
[1673706818427,0.66464584,21075.0,21068.0,0.61065795]
[1673706818680,0.66464584,21075.0,21069.0,0.19072595]
[1673706818681,0.47720169,21073.0,21069.0,0.19072595]
[1673706818930,0.01915,21071.0,21067.0,1.02041377]
[1673706819202,0.04755,21070.0,21067.0,1.02041377]
[1673706819460,0.0898,21068.0,21067.0,1.21113972]
[1673706819698,0.474497,21075.0,21069.0,1.58894402]
[1673706819997,0.474497,21075.0,21070.0,0.19072595]
[1673706819998,0.47720169,21074.0,21070.0,0.19072595]
[1673706820255,0.04755,21081.0,21071.0,0.19072595]
[1673706820512,0.47720169,21083.0,21073.0,0.55245]
[1673706820976,0.47720169,21083.0,21072.0,0.29072595]
[1673706820977,0.948442,21088.0,21084.0,0.64394299]
[1673706820982,0.948442,21088.0,21084.0,0.64339389]
[1673706821230,0.03022421,21089.0,21085.0,0.19072595]
[1673706821478,0.03022421,21089.0,21086.0,0.28511673]
[1673706821746,0.04755,21087.0,21084.0,0.64339389]
[1673706822000,0.71547764,21087.0,21084.0,0.64339389]
[1673706822250,0.10895,21085.0,21084.0,0.59122299]
[1673706822773,0.0898,21085.0,21084.0,0.59122299]
[1673706823029,0.56700169,21085.0,21073.0,0.1]
[1673706823274,0.04755,21076.0,21069.0,1.58894402]
[1673706823529,0.04755,21076.0,21070.0,0.31805333]
[1673706823530,0.19072595,21075.0,21070.0,0.31805333]
[1673706823794,0.19072595,21074.0,21069.0,1.58894402]
[1673706824047,0.04755,21071.0,21069.0,1.58894402]
[1673706824311,0.19072595,21070.0,21069.0,1.58894402]
[1673706824594,0.19072595,21070.0,21069.0,0.6146469]
[1673706824814,0.19072595,21070.0,21066.0,0.00694642]
[1673706824815,0.1,21069.0,21066.0,0.00694642]
[1673706825063,1.66478364,21068.0,21063.0,0.32427158]
[1673706825315,0.04755,21065.0,21063.0,0.32427158]
[1673706825591,0.04755,21065.0,21055.0,0.1]
[1673706825592,0.04755,21065.0,21064.0,0.32286236]
[1673706825848,0.29072595,21065.0,21063.0,0.28251398]
[1673706826069,0.29072595,21065.0,21051.0,0.04869331]
[1673706826317,0.474768,21063.0,21053.0,0.1]
[1673706826581,0.19072595,21063.0,21061.0,0.6]
[1673706826832,1.121926,21074.0,21061.0,0.6]
[1673706826833,0.6474,21074.0,21065.0,0.48678203]
[1673706827122,0.95176269,21073.0,21066.0,0.18511673]
[1673706827352,0.57720169,21072.0,21067.0,0.18511673]
[1673706827603,0.949194,21071.0,21067.0,0.18511673]
[1673706828401,0.47720169,21070.0,21066.0,0.29842432]
[1673706828621,0.66792764,21070.0,21066.0,0.29842432]
[1673706828872,0.66792764,21070.0,21066.0,0.48354105]
[1673706828873,0.474635,21069.0,21066.0,0.48354105]
[1673706829128,0.464597,21071.0,21069.0,0.83401943]
[1673706829411,0.08999,21070.0,21069.0,0.83401943]
[1673706829690,0.33428422,21070.0,21069.0,0.83401943]
[1673706829898,0.68781752,21070.0,21069.0,0.51115707]
[1673706830147,1.48339338,21070.0,21065.0,0.48678203]
[1673706830401,1.48339338,21070.0,21065.0,0.18519876]
[1673706830402,0.98835169,21069.0,21065.0,0.18519876]
[1673706830656,0.97114969,21070.0,21059.0,0.37306456]
[1673706830908,0.97114969,21070.0,21051.0,0.1]
[1673706830909,0.474658,21068.0,21057.0,0.36770215]
[1673706831156,0.01915,21060.0,21051.0,0.6389135]
[1673706831432,0.46037719,21066.0,21063.0,0.05745]
[1673706831685,0.46037719,21066.0,21061.0,0.05745]
[1673706831686,0.1,21064.0,21061.0,0.05745]
[1673706831946,1.42673369,21063.0,21058.0,0.26425675]
[1673706832191,0.1,21061.0,21056.0,0.27484982]
[1673706832441,2.09246264,21060.0,21050.0,0.18287167]
[1673706832711,0.01915,21057.0,21050.0,0.18287167]
[1673706832968,0.949896,21055.0,21050.0,0.18287167]
[1673706833234,0.01915,21053.0,21050.0,0.18287167]
[1673706833546,0.474999,21053.0,21052.0,0.13907371]
[1673706833751,0.474999,21053.0,21046.0,1.33057785]
[1673706833752,1.14294164,21052.0,21048.0,0.01794497]
[1673706834014,1.14080795,21051.0,21048.0,0.01794497]